fUST/lending_fUST_20250518
["ID","MTS","AMOUNT","RATE_DAILY","PERIOD"]
[361368867,1747519847987,-450.0,0.00014109,2]
[361368868,1747519847996,-574.05,0.00014109,2]
[361368869,1747519848005,-450.0,0.00014109,2]
[361368870,1747519848015,-1253.29,0.00014109,2]
[361368871,1747519848024,-320.67,0.00014109,2]
[361368872,1747519848033,-292.77,0.00014109,2]
[361368873,1747519848042,-450.0,0.00014109,2]
[361368874,1747519848051,-450.0,0.00014109,2]
[361368875,1747519848060,-450.0,0.00014109,2]
[361368876,1747519848069,-450.0,0.00014109,2]
[361368877,1747519848078,-450.0,0.00014109,2]
[361368878,1747519848087,-977.84,0.00014109,2]
[361368879,1747519848096,-473.25,0.00014109,2]
[361368880,1747519848106,-3877.21,0.00014109,2]
[361368881,1747519848116,-779.76,0.00014109,2]
[361368882,1747519848125,-1674.21,0.00014109,2]
[361368883,1747519848135,-450.0,0.00014109,2]
[361368884,1747519848144,-1175.21,0.00014109,2]
[361368885,1747519848154,-450.0,0.00014109,2]
[361368886,1747519848163,-450.0,0.00014109,2]
[361368887,1747519848172,-224.79,0.00014109,2]
[361368888,1747519848181,-481.19,0.00014109,2]
[361368889,1747519848190,-450.0,0.00014109,2]
[361368890,1747519848199,-450.0,0.00014109,2]
[361368891,1747519848209,-450.0,0.00014109,2]
[361368892,1747519848218,-450.0,0.00014109,2]
[361368893,1747519848228,-450.0,0.00014109,2]
[361368894,1747519848239,-669.14,0.00014109,2]
[361368895,1747519848248,-450.0,0.00014109,2]
[361368896,1747519848257,-1887.62,0.00014109,2]
[361368897,1747519848267,-752.82,0.00014109,2]
[361368898,1747519848277,-450.0,0.00014109,2]
[361368899,1747519848287,-1139.14,0.00014109,2]
[361368900,1747519848296,-1257.29,0.00014109,2]
[361368901,1747519848305,-2597.94,0.00014109,2]
[361368902,1747519848315,-271.980532,0.00014125,2]
[361368903,1747519848324,-151.0,0.000142,2]
[361368904,1747519848334,-153.0,0.00014219,2]
[361368905,1747519848344,-151.0,0.00014246,2]
[361368906,1747519848353,-450.0,0.00014246,2]
[361368907,1747519848363,-323.7,0.00014246,2]
[361368908,1747519848372,-450.0,0.00014246,2]
[361368909,1747519848381,-151.0,0.00014246,2]
[361368910,1747519848391,-151.0,0.00014246,2]
[361368911,1747519848400,-450.0,0.00014246,2]
[361368912,1747519848410,-450.0,0.00014246,2]
[361368913,1747519848420,-151.0,0.00014246,2]
[361368914,1747519848431,-151.0,0.00014246,2]
[361368915,1747519848440,-450.0,0.00014246,2]
[361368916,1747519848450,-565.12379958,0.00014246,2]
[361368917,1747519848460,-450.0,0.00014246,2]
[361368918,1747519848469,-450.0,0.00014246,2]
[361368919,1747519848479,-450.0,0.00014246,2]
[361368920,1747519848489,-450.0,0.00014246,2]
[361368921,1747519848499,-450.0,0.00014246,2]
[361368922,1747519848508,-450.0,0.00014246,2]
[361368923,1747519848517,-265.77,0.00014246,2]
[361368924,1747519848527,-450.0,0.00014246,2]
[361368925,1747519848536,-450.0,0.00014246,2]
[361368926,1747519848546,-450.0,0.00014246,2]
[361368927,1747519848555,-450.0,0.00014246,2]
[361368928,1747519848565,-450.0,0.00014246,2]
[361368929,1747519848574,-450.0,0.00014246,2]
[361368930,1747519848584,-450.0,0.00014246,2]
[361368931,1747519848593,-640.21,0.00014246,2]
[361368932,1747519848603,-450.0,0.00014246,2]
[361368933,1747519848612,-450.0,0.00014246,2]
[361368934,1747519848622,-450.0,0.00014246,2]
[361368935,1747519848631,-450.0,0.00014246,2]
[361368936,1747519848641,-450.0,0.00014246,2]
[361368937,1747519848652,-350.28,0.00014246,2]
[361368938,1747519848662,-2845.22,0.00014246,2]
[361368939,1747519848671,-1276.89,0.00014246,2]
[361368940,1747519848680,-736.33,0.00014246,2]
[361368941,1747519848690,-560.13,0.00014246,2]
[361368942,1747519848704,-450.0,0.00014246,2]
[361368943,1747519848714,-917.93,0.00014246,2]
[361368944,1747519848723,-450.0,0.00014246,2]
[361368945,1747519848735,-450.0,0.00014246,2]
[361368946,1747519848746,-450.0,0.00014246,2]
[361368947,1747519848756,-471.03,0.00014246,2]
[361368948,1747519848766,-450.0,0.00014246,2]
[361368949,1747519848777,-450.0,0.00014246,2]
[361368950,1747519848787,-459.21,0.00014246,2]
[361368951,1747519848797,-450.0,0.00014246,2]
[361368952,1747519848806,-895.76,0.00014246,2]
[361368953,1747519848816,-450.0,0.00014246,2]
[361368954,1747519848825,-450.0,0.00014246,2]
[361368955,1747519848834,-450.0,0.00014246,2]
[361368956,1747519848844,-3778.14,0.00014246,2]
[361368957,1747519848853,-753.06,0.00014246,2]
[361368958,1747519848862,-594.88,0.00014246,2]
[361368959,1747519848872,-450.0,0.00014246,2]
[361368960,1747519848882,-450.0,0.00014246,2]
[361368961,1747519848891,-450.0,0.00014246,2]
[361368962,1747519848901,-450.0,0.00014246,2]
[361368963,1747519848910,-450.0,0.00014246,2]
[361368964,1747519848920,-450.0,0.00014246,2]
[361368965,1747519848929,-350.0,0.00014246,2]
[361368966,1747519848938,-574.05,0.00014246,2]
[361368967,1747519848948,-450.0,0.00014246,2]
[361368968,1747519848957,-1253.29,0.00014246,2]
[361368969,1747519848966,-450.0,0.00014246,2]
[361368970,1747519848976,-398.01,0.00014246,2]
[361368971,1747519848987,-450.0,0.00014246,2]
[361368972,1747519848996,-450.0,0.00014246,2]
[361368973,1747519849006,-450.0,0.00014246,2]
[361368974,1747519849016,-977.84,0.00014246,2]
[361368975,1747519849027,-3877.21,0.00014246,2]
[361368976,1747519849036,-779.76,0.00014246,2]
[361368977,1747519849046,-1674.21,0.00014246,2]
[361368978,1747519849055,-450.0,0.00014246,2]
[361368979,1747519849064,-1175.21,0.00014246,2]
[361368980,1747519849073,-450.0,0.00014246,2]
[361368981,1747519849082,-450.0,0.00014246,2]
[361368982,1747519849092,-481.19,0.00014246,2]
[361368983,1747519849101,-450.0,0.00014246,2]
[361368984,1747519849110,-450.0,0.00014246,2]
[361368985,1747519849119,-450.0,0.00014246,2]
[361368986,1747519849129,-450.0,0.00014246,2]
[361368987,1747519849139,-450.0,0.00014246,2]
[361368988,1747519849148,-669.14,0.00014246,2]
[361368989,1747519849158,-450.0,0.00014246,2]
[361368990,1747519849167,-752.82,0.00014246,2]
[361368991,1747519849176,-450.0,0.00014246,2]
[361368992,1747519849186,-1887.62,0.00014246,2]
[361368993,1747519849196,-2597.94,0.00014246,2]
[361368994,1747519849205,-1062.44557331,0.00014314,2]
[361368995,1747519849215,-450.0,0.00014383,2]
[361368996,1747519849226,-450.0,0.00014383,2]
[361368997,1747519849237,-151.0,0.00014383,2]
[361368998,1747519849247,-450.0,0.00014383,2]
[361368999,1747519849256,-151.0,0.00014383,2]
[361369000,1747519849265,-450.0,0.00014383,2]
[361369001,1747519849275,-273.93024,0.00014383,2]
[361369002,1747519849284,-450.0,0.00014383,2]
[361369003,1747519849294,-450.0,0.00014383,2]
[361369004,1747519849304,-542.25,0.00014383,2]
[361369005,1747519849313,-450.0,0.00014383,2]
[361369006,1747519849322,-194.28,0.00014383,2]
[361369007,1747519849331,-450.0,0.00014383,2]
[361369008,1747519849341,-407.7,0.00014383,2]
[361369009,1747519849350,-450.0,0.00014383,2]
[361369010,1747519849360,-414.09,0.00014383,2]
[361369011,1747519849370,-573.36,0.00014383,2]
[361369012,1747519849379,-450.0,0.00014383,2]
[361369013,1747519849388,-387.98,0.00014383,2]
[361369014,1747519849398,-450.0,0.00014383,2]
[361369015,1747519849408,-300.0,0.00014383,2]
[361369016,1747519849418,-640.21,0.00014383,2]
[361369017,1747519849428,-450.0,0.00014383,2]
[361369018,1747519849438,-353.22,0.00014383,2]
[361369019,1747519849447,-450.0,0.00014383,2]
[361369020,1747519849567,-450.0,0.00014383,2]
[361369021,1747519849577,-450.0,0.00014383,2]
[361369022,1747519849587,-2845.22,0.00014383,2]
[361369023,1747519849597,-1276.89,0.00014383,2]
[361369024,1747519849607,-736.33,0.00014383,2]
[361369025,1747519849616,-482.94,0.00014383,2]
[361369026,1747519849626,-917.93,0.00014383,2]
[361369027,1747519849635,-450.0,0.00014383,2]
[361369028,1747519849645,-450.0,0.00014383,2]
[361369029,1747519849655,-450.0,0.00014383,2]
[361369030,1747519849664,-471.03,0.00014383,2]
[361369031,1747519849674,-450.0,0.00014383,2]
[361369032,1747519849684,-450.0,0.00014383,2]
[361369033,1747519849696,-459.21,0.00014383,2]
[361369034,1747519849706,-450.0,0.00014383,2]
[361369035,1747519849715,-895.76,0.00014383,2]
[361369036,1747519849725,-450.0,0.00014383,2]
[361369037,1747519849736,-450.0,0.00014383,2]
[361369038,1747519849745,-300.0,0.00014383,2]
[361369039,1747519849755,-3778.14,0.00014383,2]
[361369040,1747519849764,-753.06,0.00014383,2]
[361369041,1747519849773,-594.88,0.00014383,2]
[361369042,1747519849783,-450.0,0.00014383,2]
[361369043,1747519849792,-450.0,0.00014383,2]
[361369044,1747519849802,-450.0,0.00014383,2]
[361369045,1747519849811,-450.0,0.00014383,2]
[361369046,1747519849821,-450.0,0.00014383,2]
[361369047,1747519849830,-450.0,0.00014383,2]
[361369048,1747519849839,-574.05,0.00014383,2]
[361369049,1747519849849,-1253.29,0.00014383,2]
[361369050,1747519849859,-450.0,0.00014383,2]
[361369051,1747519849868,-450.0,0.00014383,2]
[361369052,1747519849878,-469.94,0.00014383,2]
[361369053,1747519849887,-450.0,0.00014383,2]
[361369054,1747519849897,-450.0,0.00014383,2]
[361369055,1747519849907,-977.84,0.00014383,2]
[361369056,1747519849917,-3877.21,0.00014383,2]
[361369057,1747519849926,-779.76,0.00014383,2]
[361369058,1747519849937,-1674.21,0.00014383,2]
[361369059,1747519849946,-450.0,0.00014383,2]
[361369060,1747519849956,-1175.21,0.00014383,2]
[361369061,1747519849965,-450.0,0.00014383,2]
[361369062,1747519849975,-481.19,0.00014383,2]
[361369063,1747519849989,-450.0,0.00014383,2]
[361369064,1747519849999,-450.0,0.00014383,2]
[361369065,1747519850011,-450.0,0.00014383,2]
[361369066,1747519850021,-450.0,0.00014383,2]
[361369067,1747519850031,-450.0,0.00014383,2]
[361369068,1747519850040,-669.14,0.00014383,2]
[361369069,1747519850051,-450.0,0.00014383,2]
[361369070,1747519850061,-752.82,0.00014383,2]
[361369071,1747519850071,-189.63,0.00014383,2]
[361369072,1747519850081,-1887.62,0.00014383,2]
[361369073,1747519850091,-2597.94,0.00014383,2]
[361369074,1747519850100,-151.0,0.000144,2]
[361369075,1747519850110,-151.0,0.000144,2]
[361369076,1747519850119,-151.0,0.000144,2]
[361369077,1747519850129,-500.0,0.00014491,2]
[361369078,1747519850139,-500.0,0.00014498,2]
[361369079,1747519850148,-151.0,0.000145,2]
[361369080,1747519850158,-500.0,0.00014508,2]
[361369081,1747519850167,-151.0,0.0001452,2]
[361369082,1747519850177,-450.0,0.0001452,2]
[361369083,1747519850187,-402.56,0.0001452,2]
[361369084,1747519850196,-151.0,0.0001452,2]
[361369085,1747519850206,-450.0,0.0001452,2]
[361369086,1747519850215,-151.0,0.0001452,2]
[361369087,1747519850225,-450.0,0.0001452,2]
[361369088,1747519850239,-450.0,0.0001452,2]
[361369089,1747519850248,-450.0,0.0001452,2]
[361369090,1747519850258,-241.44,0.0001452,2]
[361369091,1747519850267,-450.0,0.0001452,2]
[361369092,1747519850277,-450.0,0.0001452,2]
[361369093,1747519850286,-640.21,0.0001452,2]
[361369094,1747519850296,-450.0,0.0001452,2]
[361369095,1747519850305,-450.0,0.0001452,2]
[361369096,1747519850315,-2845.22,0.0001452,2]
[361369097,1747519850325,-1276.89,0.0001452,2]
[361369098,1747519850335,-736.33,0.0001452,2]
[361369099,1747519850344,-917.93,0.0001452,2]
[361369100,1747519850354,-450.0,0.0001452,2]
[361369101,1747519850363,-450.0,0.0001452,2]
[361369102,1747519850373,-450.0,0.0001452,2]
[361369103,1747519850382,-471.03,0.0001452,2]
[361369104,1747519850392,-450.0,0.0001452,2]
[361369105,1747519850401,-450.0,0.0001452,2]
[361369106,1747519850411,-459.21,0.0001452,2]
[361369107,1747519850421,-450.0,0.0001452,2]
[361369108,1747519850430,-895.76,0.0001452,2]
[361369109,1747519850441,-450.0,0.0001452,2]
[361369110,1747519850450,-3778.14,0.0001452,2]
[361369111,1747519850460,-753.06,0.0001452,2]
[361369112,1747519850470,-594.88,0.0001452,2]
[361369113,1747519850482,-350.96137602,0.0001452,2]
[361369114,1747519850492,-450.0,0.0001452,2]
[361369115,1747519850501,-450.0,0.0001452,2]
[361369116,1747519850511,-450.0,0.0001452,2]
[361369117,1747519850520,-450.0,0.0001452,2]
[361369118,1747519850530,-450.0,0.0001452,2]
[361369119,1747519850539,-574.05,0.0001452,2]
[361369120,1747519850549,-1253.29,0.0001452,2]
[361369121,1747519850558,-450.0,0.0001452,2]
[361369122,1747519850568,-450.0,0.0001452,2]
[361369123,1747519850577,-450.0,0.0001452,2]
[361369124,1747519850587,-450.0,0.0001452,2]
[361369125,1747519850597,-977.84,0.0001452,2]
[361369126,1747519850608,-3877.21,0.0001452,2]
[361369127,1747519850618,-779.76,0.0001452,2]
[361369128,1747519850627,-1674.21,0.0001452,2]
[361369129,1747519850639,-450.0,0.0001452,2]
[361369130,1747519850650,-1175.21,0.0001452,2]
[361369131,1747519850661,-450.0,0.0001452,2]
[361369132,1747519850672,-481.19,0.0001452,2]
[361369133,1747519850681,-450.0,0.0001452,2]
[361369134,1747519850692,-450.0,0.0001452,2]
[361369135,1747519850705,-510.53,0.0001452,2]
[361369136,1747519850715,-450.0,0.0001452,2]
[361369137,1747519850724,-669.14,0.0001452,2]
[361369138,1747519850737,-450.0,0.0001452,2]
[361369139,1747519850747,-752.82,0.0001452,2]
[361369140,1747519850756,-1887.62,0.0001452,2]
[361369141,1747519850765,-2597.94,0.0001452,2]
[361369142,1747519850777,-375.9890575,0.00014583,2]
[361369143,1747519850787,-151.0,0.000146,2]
[361369144,1747519850796,-151.0,0.000146,2]
[361369145,1747519850805,-151.0,0.000146,2]
[361369146,1747519850815,-500.91176699,0.00014639,2]
[361369147,1747519850824,-500.0,0.00014639,2]
[361369148,1747519850833,-151.0,0.00014657,2]
[361369149,1747519850843,-450.0,0.00014657,2]
[361369150,1747519850852,-151.0,0.00014657,2]
[361369151,1747519850862,-490.48,0.00014657,2]
[361369152,1747519850872,-243.548464,0.00014657,2]
[361369153,1747519850881,-450.0,0.00014657,2]
[361369154,1747519850891,-359.47,0.00014657,2]
[361369155,1747519850900,-450.0,0.00014657,2]
[361369156,1747519850909,-451.89,0.00014657,2]
[361369157,1747519850918,-450.0,0.00014657,2]
[361369158,1747519850927,-640.21,0.00014657,2]
[361369159,1747519850937,-450.0,0.00014657,2]
[361369160,1747519850946,-450.0,0.00014657,2]
[361369161,1747519850956,-2845.22,0.00014657,2]
[361369162,1747519850966,-1276.89,0.00014657,2]
[361369163,1747519850976,-736.33,0.00014657,2]
[361369164,1747519850987,-917.93,0.00014657,2]
[361369165,1747519850997,-450.0,0.00014657,2]
[361369166,1747519851006,-450.0,0.00014657,2]
[361369167,1747519851016,-279.82,0.00014657,2]
[361369168,1747519851025,-450.0,0.00014657,2]
[361369169,1747519851035,-450.0,0.00014657,2]
[361369170,1747519851045,-471.03,0.00014657,2]
[361369171,1747519851054,-459.21,0.00014657,2]
[361369172,1747519851064,-450.0,0.00014657,2]
[361369173,1747519851073,-895.76,0.00014657,2]
[361369174,1747519851083,-450.0,0.00014657,2]
[361369175,1747519851092,-3778.14,0.00014657,2]
[361369176,1747519851101,-753.06,0.00014657,2]
[361369177,1747519851111,-594.88,0.00014657,2]
[361369178,1747519851120,-450.0,0.00014657,2]
[361369179,1747519851129,-450.0,0.00014657,2]
[361369180,1747519851139,-450.0,0.00014657,2]
[361369181,1747519851148,-450.0,0.00014657,2]
[361369182,1747519851157,-450.0,0.00014657,2]
[361369183,1747519851167,-574.05,0.00014657,2]
[361369184,1747519851177,-1253.29,0.00014657,2]
[361369185,1747519851186,-450.0,0.00014657,2]
[361369186,1747519851196,-450.0,0.00014657,2]
[361369187,1747519851205,-450.0,0.00014657,2]
[361369188,1747519851215,-450.0,0.00014657,2]
[361369189,1747519851224,-977.84,0.00014657,2]
[361369190,1747519851235,-3877.21,0.00014657,2]
[361369191,1747519851244,-779.76,0.00014657,2]
[361369192,1747519851255,-1674.21,0.00014657,2]
[361369193,1747519851264,-450.0,0.00014657,2]
[361369194,1747519851274,-1175.21,0.00014657,2]
[361369195,1747519851284,-450.0,0.00014657,2]
[361369196,1747519851294,-481.19,0.00014657,2]
[361369197,1747519851304,-450.0,0.00014657,2]
[361369198,1747519851315,-450.0,0.00014657,2]
[361369199,1747519851328,-450.0,0.00014657,2]
[361369200,1747519851339,-669.14,0.00014657,2]
[361369201,1747519851350,-450.0,0.00014657,2]
[361369202,1747519851360,-752.82,0.00014657,2]
[361369203,1747519851371,-1887.62,0.00014657,2]
[361369204,1747519851380,-2597.94,0.00014657,2]
[361369205,1747519851390,-150.0,0.0001467,2]
[361369206,1747519851401,-151.0,0.000147,2]
[361369207,1747519851411,-151.0,0.000147,2]
[361369208,1747519851421,-312.19434165,0.00014721,2]
[361369209,1747519851430,-1062.44557331,0.00014728,2]
[361369210,1747519851440,-4861.38865476,0.00014792,2]
[361369211,1747519851449,-151.0,0.00014794,2]
[361369212,1747519851459,-450.0,0.00014794,2]
[361369213,1747519851468,-151.0,0.00014794,2]
[361369214,1747519851478,-450.0,0.00014794,2]
[361369215,1747519851488,-450.0,0.00014794,2]
[361369216,1747519851498,-450.0,0.00014794,2]
[361369217,1747519851507,-640.21,0.00014794,2]
[361369218,1747519851517,-450.0,0.00014794,2]
[361369219,1747519851527,-450.0,0.00014794,2]
[361369220,1747519851537,-2845.22,0.00014794,2]
[361369221,1747519851547,-1276.89,0.00014794,2]
[361369222,1747519851556,-736.33,0.00014794,2]
[361369223,1747519851566,-917.93,0.00014794,2]
[361369224,1747519851576,-450.0,0.00014794,2]
[361369225,1747519851585,-450.0,0.00014794,2]
[361369226,1747519851596,-450.0,0.00014794,2]
[361369227,1747519851606,-450.0,0.00014794,2]
[361369228,1747519851616,-471.03,0.00014794,2]
[361369229,1747519851626,-459.21,0.00014794,2]
[361369230,1747519851636,-450.0,0.00014794,2]
[361369231,1747519851646,-895.76,0.00014794,2]
[361369232,1747519851658,-450.0,0.00014794,2]
[361369233,1747519851669,-3778.14,0.00014794,2]
[361369234,1747519851680,-753.06,0.00014794,2]
[361369235,1747519851695,-594.88,0.00014794,2]
[361369236,1747519851801,-450.0,0.00014794,2]
[361369237,1747519851810,-450.0,0.00014794,2]
[361369238,1747519851819,-492.03,0.00014794,2]
[361369239,1747519851828,-450.0,0.00014794,2]
[361369240,1747519851838,-450.0,0.00014794,2]
[361369241,1747519851847,-574.05,0.00014794,2]
[361369242,1747519851856,-1253.29,0.00014794,2]
[361369243,1747519851865,-450.0,0.00014794,2]
[361369244,1747519851874,-326.0,0.00014794,2]
[361369245,1747519851884,-450.0,0.00014794,2]
[361369246,1747519851893,-473.69,0.00014794,2]
[361369247,1747519851902,-359.53078551,0.00014794,2]
[361369248,1747519852094,-611.487856,0.00014794,2]
[361369249,1747519852458,-4005.4771906,0.00013667,2]
[361369250,1747519852475,-1942.60085208,0.00013667,2]
[361369251,1747519852631,-423.86519153,0.00013667,2]
[361369252,1747519852641,-151.0,0.00013698,2]
[361369253,1747519852651,-151.0,0.00013698,2]
[361369254,1747519852660,-151.0,0.00013698,2]
[361369255,1747519852670,-124.11544937,0.00013698,2]
[361369256,1747519852682,-47.36579963,0.00013698,2]
[361369257,1747519852699,-400.0,0.00013698,2]
[361369258,1747519852709,-336.047214,0.00013698,2]
[361369259,1747519852718,-336.047214,0.00013698,2]
[361369260,1747519852727,-221.56914876,0.00013698,2]
[361369261,1747519852740,-114.47806524,0.00013698,2]
[361369262,1747519852750,-302.33914914,0.00013735,2]
[361369263,1747519852868,-336.047214,0.00013698,2]
[361369264,1747519852878,-336.047214,0.00013698,2]
[361369265,1747519852887,-336.047214,0.00013698,2]
[361369266,1747519852896,-6069.60408507,0.00013735,2]
[361369267,1747519852907,-336.047214,0.00013735,2]
[361369268,1747519852916,-336.047214,0.00013735,2]
[361369269,1747519852925,-6371.94323421,0.00013804,2]
[361369270,1747519852934,-336.047214,0.00013835,2]
[361369271,1747519852943,-336.047214,0.00013835,2]
[361369272,1747519852953,-336.047214,0.00013835,2]
[361369273,1747519852962,-336.047214,0.00013835,2]
[361369274,1747519852971,-336.047214,0.00013835,2]
[361369275,1747519852981,-6371.94323421,0.00013872,2]
[361369276,1747519852990,-336.047214,0.00013972,2]
[361369277,1747519853000,-336.047214,0.00013972,2]
[361369278,1747519853010,-212.29844686,0.00014102,2]
[361369279,1747519853020,-1139.14,0.00014246,2]
[361369280,1747519853030,-1257.29,0.00014246,2]
[361369281,1747519853040,-1139.14,0.00014383,2]
[361369282,1747519853051,-1257.29,0.00014383,2]
[361369283,1747519853061,-1139.14,0.0001452,2]
[361369284,1747519853071,-1257.29,0.0001452,2]
[361369285,1747519853081,-1139.14,0.00014657,2]
[361369286,1747519853091,-1257.29,0.00014657,2]
[361369287,1747519853100,-6.82135849,0.00014794,2]
[361369288,1747519853109,-3877.21,0.00014794,2]
[361369289,1747519853119,-779.76,0.00014794,2]
[361369290,1747519853128,-1674.21,0.00014794,2]
[361369291,1747519853138,-450.0,0.00014794,2]
[361369292,1747519853147,-1175.21,0.00014794,2]
[361369293,1747519853157,-450.0,0.00014794,2]
[361369294,1747519853166,-481.19,0.00014794,2]
[361369295,1747519853175,-450.0,0.00014794,2]
[361369296,1747519853184,-450.0,0.00014794,2]
[361369297,1747519853193,-450.0,0.00014794,2]
[361369298,1747519853203,-669.14,0.00014794,2]
[361369299,1747519853212,-450.0,0.00014794,2]
[361369300,1747519853221,-752.82,0.00014794,2]
[361369301,1747519853231,-1887.62,0.00014794,2]
[361369302,1747519853240,-2597.94,0.00014794,2]
[361369303,1747519853250,-1139.14,0.00014794,2]
[361369304,1747519853259,-1257.29,0.00014794,2]
[361369305,1747519853269,-151.0,0.000148,2]
[361369306,1747519853278,-151.0,0.000148,2]
[361369307,1747519853288,-420.0,0.00014902,2]
[361369308,1747519853298,-450.0,0.00014931,2]
[361369309,1747519853308,-151.0,0.00014931,2]
[361369310,1747519853317,-450.0,0.00014931,2]
[361369311,1747519853327,-450.0,0.00014931,2]
[361369312,1747519853336,-450.0,0.00014931,2]
[361369313,1747519853345,-640.21,0.00014931,2]
[361369314,1747519853355,-164.03,0.00014931,2]
[361369315,1747519853364,-450.0,0.00014931,2]
[361369316,1747519853373,-2845.22,0.00014931,2]
[361369317,1747519853383,-1276.89,0.00014931,2]
[361369318,1747519853392,-736.33,0.00014931,2]
[361369319,1747519853402,-917.93,0.00014931,2]
[361369320,1747519853412,-450.0,0.00014931,2]
[361369321,1747519853422,-450.0,0.00014931,2]
[361369322,1747519853431,-450.0,0.00014931,2]
[361369323,1747519853441,-450.0,0.00014931,2]
[361369324,1747519853451,-471.03,0.00014931,2]
[361369325,1747519853460,-459.21,0.00014931,2]
[361369326,1747519853469,-450.0,0.00014931,2]
[361369327,1747519853479,-895.76,0.00014931,2]
[361369328,1747519853490,-450.0,0.00014931,2]
[361369329,1747519853601,-3778.14,0.00014931,2]
[361369330,1747519853611,-753.06,0.00014931,2]
[361369331,1747519853621,-594.88,0.00014931,2]
[361369332,1747519853632,-450.0,0.00014931,2]
[361369333,1747519853644,-450.0,0.00014931,2]
[361369334,1747519853655,-450.0,0.00014931,2]
[361369335,1747519853665,-450.0,0.00014931,2]
[361369336,1747519853674,-574.05,0.00014931,2]
[361369337,1747519853684,-1253.29,0.00014931,2]
[361369338,1747519853698,-450.0,0.00014931,2]
[361369339,1747519853707,-450.0,0.00014931,2]
[361369340,1747519853717,-977.84,0.00014931,2]
[361369341,1747519853726,-3877.21,0.00014931,2]
[361369342,1747519853736,-779.76,0.00014931,2]
[361369343,1747519853746,-1674.21,0.00014931,2]
[361369344,1747519853756,-450.0,0.00014931,2]
[361369345,1747519853765,-1175.21,0.00014931,2]
[361369346,1747519853774,-450.0,0.00014931,2]
[361369347,1747519853783,-481.19,0.00014931,2]
[361369348,1747519853793,-450.0,0.00014931,2]
[361369349,1747519853802,-450.0,0.00014931,2]
[361369350,1747519853812,-450.0,0.00014931,2]
[361369351,1747519853822,-669.14,0.00014931,2]
[361369352,1747519853831,-450.0,0.00014931,2]
[361369353,1747519853841,-752.82,0.00014931,2]
[361369354,1747519853850,-1887.62,0.00014931,2]
[361369355,1747519853859,-2597.94,0.00014931,2]
[361369356,1747519853869,-1139.14,0.00014931,2]
[361369357,1747519853878,-1257.29,0.00014931,2]
[361369358,1747519853887,-160.0,0.00015,2]
[361369359,1747519853896,-151.0,0.00015,2]
[361369360,1747519853906,-307.9754932,0.00015041,2]
[361369361,1747519853915,-315.9656312,0.00015041,2]
[361369362,1747519853924,-175.8769535,0.00015041,2]
[361369363,1747519853934,-569.5668793,0.00015041,2]
[361369364,1747519853944,-500.0,0.00015046,2]
[361369365,1747519853954,-516.67685574,0.00015056,2]
[361369366,1747519853963,-151.0,0.00015059,2]